fUST/lending_fUST_20240915
["ID","MTS","AMOUNT","RATE_DAILY","PERIOD"]
[338173230,1726347046548,-151.0,0.00021866,2]
[338173231,1726347046560,-1607.192623,0.00021866,2]
[338173232,1726347046570,-1607.192623,0.00021866,2]
[338173233,1726347046582,-124361.43977699,0.00021866,3]
[338173234,1726347046642,-56.43591566,0.00021866,3]
[338173257,1726347548509,1000.0,0.00026,60]
[338173259,1726347614263,205.729963,0.00013699,2]
[338173276,1726348181396,208.287975,0.00013699,2]
[338173316,1726348240669,-208.287975,0.00020187,2]
[338173317,1726348240685,-1000.0,0.00021,3]
[338173318,1726348240696,-1000.0,0.00021,2]
[338173319,1726348240710,-150.0,0.00021021,2]
[338173321,1726348240729,-600.0,0.0002104,2]
[338173323,1726348240742,-600.0,0.00021259,2]
[338173324,1726348240755,-300.0,0.00021299,2]
[338173326,1726348240769,-153.0,0.000213,2]
[338173328,1726348240782,-447.8642984,0.000213,2]
[338173329,1726348240795,-153.2837228,0.000213,2]
[338173330,1726348240809,-386.4409342,0.000213,2]
[338173331,1726348240824,-208.5342696,0.000213,2]
[338173332,1726348240836,-153.0,0.000213,2]
[338173333,1726348240849,-153.0,0.000213,2]
[338173334,1726348240862,-309.6430647,0.000213,2]
[338173335,1726348240877,-153.0,0.000213,2]
[338173336,1726348240891,-153.0,0.000213,2]
[338173337,1726348240906,-208.5342696,0.000213,2]
[338173338,1726348240918,-153.0,0.000213,2]
[338173339,1726348240931,-600.0,0.00021479,2]
[338173340,1726348240942,-500.0,0.00021665,2]
[338173341,1726348240954,-600.0,0.00021698,2]
[338173342,1726348240969,-153.1289409,0.000217,2]
[338173343,1726348240980,-153.0,0.000217,2]
[338173344,1726348240993,-153.0,0.000217,2]
[338173345,1726348241006,-1275.89858228,0.00021745,2]
[338173346,1726348241020,-1000.0,0.00021756,2]
[338173347,1726348241034,-928.53120566,0.00021766,2]
[338173348,1726348241048,-153.0,0.000218,2]
[338173349,1726348241062,-150.0,0.000218,2]
[338173350,1726348241076,-152.59,0.00021836,3]
[338173351,1726348241091,-457.81,0.00021836,3]
[338173352,1726348241103,-250.0,0.00021837,2]
[338173353,1726348241114,-220.159,0.00021837,2]
[338173354,1726348241125,-154.294,0.00021839,2]
[338173355,1726348241136,-250.534,0.00021839,2]
[338173356,1726348241148,-12485.68545096,0.00021846,3]
[338173361,1726348243530,-11136.03609574,0.00021846,3]
[338173362,1726348243543,-1151.00087182,0.00021846,3]
[338173428,1726348706568,315.98185124,0.00022795,90]
[338173519,1726348811438,211.032117,0.00013699,2]
[338173550,1726349244134,-211.032117,0.00020187,2]
[338173551,1726349244157,-25.2386766,0.00020544,2]
[338173560,1726349346281,199.459672,0.00013699,2]
[338173620,1726349431602,-199.459672,0.00020187,2]
[338173622,1726349431612,-136.2360334,0.00020544,2]
[338173625,1726349431623,-3275.86779113,0.00020605,2]
[338173726,1726349439687,-1637.53220287,0.00020605,2]
[338173727,1726349439698,-600.0,0.0002104,2]
[338173728,1726349439710,-641.193431,0.00021259,2]
[338173729,1726349439720,-1000.0,0.00021727,2]
[338173730,1726349439729,-49.09498649,0.00021727,2]
[338173731,1726349439741,-786.58309855,0.00021727,2]
[338173732,1726349439750,-154.295,0.000218,2]
[338173733,1726349439760,-300.0,0.00021812,2]
[338173734,1726349439769,-300.0,0.00021813,2]
[338173735,1726349439778,-305.18,0.00021816,3]
[338173736,1726349439788,-152.22,0.00021816,3]
[338173737,1726349439797,-500.0,0.00021825,2]
[338173738,1726349439808,-359.09557517,0.00021825,2]
[338173739,1726349439817,-500.0,0.00021825,2]
[338173740,1726349439826,-500.0,0.00021825,2]
[338173741,1726349439836,-500.0,0.00021825,2]
[338173742,1726349439845,-3080.43885641,0.00021825,5]
[338173743,1726349439856,-3622.66734218,0.00021826,3]
[338173744,1726349439868,-8738.19440988,0.00021826,3]
[338173745,1726349439881,-6811.58680958,0.00021826,3]
[338173773,1726349442887,-12287.03696756,0.00021826,3]
[338173791,1726349445769,-18153.3,0.00021826,3]
[338173833,1726349988405,188.567933,0.00013699,2]
[338173876,1726350454123,-746.60585568,0.0002,10]
[338173882,1726350578849,187.741053,0.00013699,2]
[338173908,1726350631777,-952.93869659,0.0002,10]
[338173909,1726350631788,-187.741053,0.00020187,2]
[338173910,1726350631800,-611.48193832,0.00020821,3]
[338173911,1726350631811,-161.36702978,0.00021697,2]
[338173912,1726350631821,-1000.0,0.00021697,2]
[338173914,1726350631832,-161.36702976,0.000217,2]
[338173915,1726350631843,-161.36702976,0.00021704,2]
[338173916,1726350631853,-829.63019682,0.00021705,2]
[338173919,1726350631864,-161.36702976,0.00021707,2]
[338173921,1726350631874,-300.0,0.00021795,2]
[338173923,1726350631884,-80.0072232,0.00021796,3]
[338173926,1726350631906,-516.1327671,0.00021796,3]
[338173971,1726350637905,-1540.2194282,0.00021796,5]
[338173972,1726350637915,-5036.16328101,0.00021796,3]
[338173978,1726350639770,-1970.01000219,0.00021796,3]
[338173979,1726350639785,-4708.41837118,0.00021796,3]
[338173980,1726350639798,-2416.69875994,0.00021796,3]
[338174006,1726350642850,-8929.27451388,0.00021796,3]
[338174007,1726350642861,-3357.76245368,0.00021796,3]
[338174012,1726350643204,-56804.76323092,0.00021796,3]
[338174013,1726350643216,-323.47392316,0.00021796,2]
[338174014,1726350643228,-515.46567221,0.00021796,2]
[338174015,1726350643238,-500.0,0.00021796,2]
[338174016,1726350643250,-500.0,0.00021796,2]
[338174017,1726350643260,-500.0,0.00021796,2]
[338174018,1726350643270,-500.0,0.00021796,2]
[338174019,1726350643281,-606.08321712,0.00021796,2]
[338174020,1726350643293,-290.78964477,0.00021796,2]
[338174021,1726350643304,-500.0,0.00021796,2]
[338174022,1726350643313,-500.0,0.00021796,2]
[338174023,1726350643323,-262.12173057,0.00021796,2]
[338174024,1726350643332,-500.0,0.00021796,2]
[338174025,1726350643342,-500.0,0.00021796,2]
[338174026,1726350643352,-500.0,0.00021796,2]
[338174027,1726350643362,-500.0,0.00021796,2]
[338174028,1726350643372,-511.84250445,0.00021796,2]
[338174029,1726350643383,-500.0,0.00021796,2]
[338174030,1726350643396,-500.0,0.00021796,2]
[338174031,1726350643408,-500.0,0.00021796,2]
[338174032,1726350643418,-500.0,0.00021796,2]
[338174033,1726350643427,-151.0,0.00021797,2]
[338174034,1726350643437,-204.497292,0.00021797,2]
[338174035,1726350643449,-204.497292,0.00021797,2]
[338174036,1726350643459,-356.536096,0.00021797,2]
[338174037,1726350643469,-151.0,0.00021797,2]
[338174038,1726350643479,-151.0,0.00021797,2]
[338174039,1726350643489,-151.0,0.00021797,2]
[338174040,1726350643499,-5722.497656,0.00021797,2]
[338174041,1726350643510,-223.453738,0.00021797,2]
[338174042,1726350643522,-5722.497656,0.00021797,2]
[338174043,1726350643533,-1081.136439,0.00021797,2]
[338174044,1726350643543,-151.883645,0.00021797,2]
[338174045,1726350643554,-722.359275,0.00021797,2]
[338174046,1726350643565,-1081.136439,0.00021797,2]
[338174047,1726350643575,-722.359275,0.00021797,2]
[338174048,1726350643586,-2369.806258,0.00021797,2]
[338174049,1726350643597,-2369.806258,0.00021797,2]
[338174050,1726350643607,-151.0,0.00021797,2]
[338174051,1726350643618,-314.348198,0.00021797,2]
[338174052,1726350643628,-151.0,0.00021797,2]
[338174053,1726350643639,-314.348198,0.00021797,2]
[338174054,1726350643650,-151.0,0.00021797,2]
[338174055,1726350643660,-151.0,0.00021797,2]
[338174056,1726350643669,-151.0,0.00021797,2]
[338174057,1726350643678,-151.0,0.00021797,2]
[338174058,1726350643689,-151.0,0.00021797,2]
[338174059,1726350643701,-1168.420147,0.00021797,2]
[338174060,1726350643711,-151.0,0.00021797,2]
[338174061,1726350643722,-1168.420147,0.00021797,2]
[338174062,1726350643733,-151.0,0.00021797,2]
[338174063,1726350643746,-151.0,0.00021797,2]
[338174064,1726350643756,-151.0,0.00021797,2]
[338174065,1726350643766,-151.0,0.00021797,2]
[338174066,1726350643775,-151.0,0.00021797,2]
[338174067,1726350643785,-151.0,0.00021797,2]
[338174068,1726350643795,-173.593907,0.00021797,2]
[338174069,1726350643808,-173.593907,0.00021797,2]
[338174070,1726350643818,-173.593907,0.00021797,2]
[338174071,1726350643829,-173.593907,0.00021797,2]
[338174072,1726350643840,-151.0,0.00021797,2]
[338174073,1726350643851,-151.0,0.00021797,2]
[338174074,1726350643862,-151.0,0.00021797,2]
[338174075,1726350643873,-151.0,0.00021797,2]
[338174076,1726350643883,-151.0,0.00021797,2]
[338174077,1726350643894,-151.0,0.00021797,2]
[338174078,1726350643903,-151.0,0.00021797,2]
[338174079,1726350643913,-151.0,0.00021797,2]
[338174080,1726350643922,-151.0,0.00021797,2]
[338174081,1726350643933,-151.0,0.00021797,2]
[338174082,1726350643942,-151.0,0.00021797,2]
[338174083,1726350643953,-151.0,0.00021797,2]
[338174084,1726350643963,-151.0,0.00021797,2]
[338174085,1726350643974,-151.0,0.00021797,2]
[338174086,1726350643985,-192.740015,0.00021797,2]
[338174087,1726350643994,-192.740015,0.00021797,2]
[338174088,1726350644004,-192.740015,0.00021797,2]
[338174089,1726350644015,-192.740015,0.00021797,2]
[338174090,1726350644025,-118283.524593,0.00021797,3]
[338174091,1726350644037,-72283.68488819,0.00021797,3]
[338174151,1726351075001,189.993376,0.00013699,2]
[338174171,1726351597249,188.665148,0.00013699,2]
[338174175,1726351627125,-327.80673596,0.000199,2]
[338174176,1726351631100,-820.13394778,0.000199,2]
[338174230,1726351838032,-780.44013364,0.000199,2]
[338174231,1726351838042,-188.665148,0.00020187,2]
[338174233,1726351838052,-161.47471,0.00020523,2]
[338174235,1726351838062,-1000.0,0.00021695,2]
[338174236,1726351838072,-717.20596792,0.00021696,2]
[338174237,1726351838120,-145.95833188,0.00021696,2]
[338174238,1726351838130,-267.33,0.00021767,3]
[338174239,1726351838140,-500.17046427,0.00021773,2]
[338174240,1726351838151,-500.0,0.00021773,2]
[338174241,1726351838160,-500.0,0.00021773,2]
[338174242,1726351838172,-500.0,0.00021773,2]
[338174243,1726351838183,-300.0,0.00021775,2]
[338174244,1726351838192,-300.0,0.00021775,2]
[338174245,1726351838202,-25738.9608478,0.00021776,3]
[338174246,1726351838212,-53540.215156,0.00021776,3]
[338174247,1726351838222,-21302.49035704,0.00021777,3]
[338174248,1726351838237,-5823.96389892,0.00021777,3]
[338174254,1726351840076,-24351.46743964,0.00021777,3]
[338174255,1726351840086,-70662.20715873,0.00021777,3]
[338174552,1726351843235,-549.94975505,0.00021773,2]
[338174555,1726351843246,-11737.08721251,0.00021777,3]
[338175252,1726352129154,8760.0,0.00014,2]
[338175253,1726352365117,207.985356,0.00013699,2]
[338175257,1726352834143,-1034.50617983,0.00020087,2]
[338175258,1726352834173,-112.22568579,0.00020187,2]
[338175259,1726352840102,-95.75967021,0.00020187,2]
[338175260,1726352840124,-695.68835542,0.00021677,2]
[338175261,1726352879139,205.909867,0.00013699,2]
[338175351,1726353038314,-205.909867,0.00020187,2]
[338175352,1726353038325,-161.47471,0.00020489,2]
[338175353,1726353038334,-157.14199098,0.000212,30]
[338175354,1726353038344,-1405.99588816,0.00021666,2]
[338175355,1726353038353,-493.99971005,0.00021677,2]
[338175591,1726353043307,-282.84815977,0.00021677,2]
[338175592,1726353043317,-1000.0,0.00021677,2]
[338175593,1726353043327,-326.08,0.00021756,3]
[338175594,1726353043337,-163.04,0.00021756,3]
[338175595,1726353043348,-489.12,0.00021756,3]
[338175596,1726353043359,-218.0,0.00021763,2]
[338175597,1726353043369,-300.0,0.00021763,2]
[338175598,1726353043380,-21901.1837765,0.00021764,3]
[338175599,1726353043391,-34811.86305856,0.00021764,3]
[338175600,1726353043405,-264.84926797,0.00021764,3]
[338175666,1726353046252,-461.34111712,0.00021764,3]
[338175672,1726353046317,-11205.18623595,0.00021764,3]
[338175674,1726353046328,-21901.1837765,0.00021766,3]
[338175675,1726353046340,-46743.2396796,0.00021766,3]
[338175676,1726353046350,-21901.1837765,0.00021766,3]
[338175677,1726353046362,-46743.2396796,0.00021766,3]
[338175678,1726353046374,-151.0,0.00021767,2]
[338175679,1726353046384,-973.022795,0.00021767,2]
[338175681,1726353046396,-151.0,0.00021767,2]
[338175683,1726353046407,-973.022795,0.00021767,2]
[338175685,1726353046417,-151.0,0.00021767,2]
[338175687,1726353046427,-151.0,0.00021767,2]
[338175688,1726353046439,-151.0,0.00021767,2]
[338175689,1726353046450,-2093.3326067,0.00021767,2]
[338175693,1726353431168,193.490321,0.00013699,2]
[338175696,1726353920970,191.987246,0.00013699,2]
[338175697,1726354039120,-191.987246,0.00020187,2]
[338175698,1726354039142,-692.02483692,0.00021508,2]
[338175699,1726354052101,-1000.0,0.00021666,2]
[338175700,1726354052127,-542.08035287,0.00021677,2]
[338175711,1726354232305,-1339.86389085,0.0002165,2]
[338175713,1726354232314,-1000.0,0.00021656,2]
[338175715,1726354232323,-673.23986351,0.00021676,2]
[338175717,1726354232333,-694.26,0.0002174,3]
[338175719,1726354232343,-347.13,0.0002174,3]
[338175721,1726354232352,-173.56,0.0002174,3]
[338175723,1726354232361,-520.71,0.0002174,3]
[338175725,1726354232371,-218.0,0.00021745,2]
[338175727,1726354232380,-300.0,0.00021745,2]
[338175729,1726354232389,-22322.18509,0.00021746,3]
[338175731,1726354232399,-1754.19585129,0.00021746,3]
[338175733,1726354232408,-22322.18509,0.0002175,3]
[338175735,1726354232418,-1754.19585129,0.0002175,3]
[338175737,1726354232427,-3466.33261693,0.0002175,3]
[338175798,1726354238341,-876.9399101,0.0002175,3]
[338175807,1726354243479,-40301.09765307,0.0002175,3]
[338175808,1726354243489,-3508.39170258,0.0002175,3]
[338175809,1726354243499,-22322.18509,0.00021754,3]
[338175810,1726354243508,-1754.19585129,0.00021754,3]
[338175811,1726354243518,-22322.18509,0.00021756,3]
[338175812,1726354243528,-1754.19585129,0.00021756,3]
[338175813,1726354243537,-22322.18509,0.00021756,3]
[338175814,1726354243547,-1754.19585129,0.00021756,3]
[338175815,1726354243556,-151.0,0.00021757,2]
[338175816,1726354243566,-2132.825632,0.00021757,2]
[338175817,1726354243576,-151.0,0.00021757,2]
[338175818,1726354243585,-338.709291,0.00021757,2]
[338175819,1726354243595,-2132.825632,0.00021757,2]
[338175820,1726354243604,-151.0,0.00021757,2]
[338175821,1726354243613,-338.709291,0.00021757,2]
[338175822,1726354243623,-151.0,0.00021757,2]
[338175823,1726354243632,-22322.18509,0.00021757,3]
[338175824,1726354243641,-1754.19585129,0.00021757,3]
[338175825,1726354243651,-770.10971411,0.0002176,5]
[338175826,1726354243660,-151.0,0.0002176,2]
[338175827,1726354243670,-151.0,0.0002176,2]
[338175828,1726354243679,-151.0,0.0002176,2]
[338175829,1726354243689,-151.0,0.0002176,2]
[338175830,1726354243699,-151.0,0.0002176,2]
[338175831,1726354243710,-151.0,0.0002176,2]
[338175832,1726354243719,-151.0,0.0002176,2]
[338175833,1726354243730,-151.0,0.0002176,2]
[338175834,1726354243739,-151.0,0.0002176,2]
[338175835,1726354243748,-151.0,0.0002176,2]
[338175836,1726354243757,-151.0,0.0002176,2]
[338175837,1726354243767,-151.0,0.0002176,2]
[338175838,1726354243776,-151.0,0.0002176,2]
[338175839,1726354243785,-593.105452,0.0002176,2]
[338175840,1726354243795,-593.105452,0.0002176,2]
[338175841,1726354243804,-151.0,0.0002176,2]
[338175842,1726354243814,-151.0,0.0002176,2]
[338175843,1726354243823,-593.105452,0.0002176,2]
[338175844,1726354243832,-593.105452,0.0002176,2]
[338175845,1726354243842,-151.0,0.0002176,2]
[338175846,1726354243852,-151.0,0.0002176,2]
[338175847,1726354243861,-363.372583,0.0002176,2]
[338175848,1726354243870,-363.372583,0.0002176,2]
[338175849,1726354243880,-151.0,0.0002176,2]
[338175850,1726354243889,-151.0,0.0002176,2]
[338175851,1726354243899,-363.372583,0.0002176,2]
[338175852,1726354243908,-363.372583,0.0002176,2]
[338175853,1726354243918,-290.90345,0.0002176,2]
[338175854,1726354243928,-479.749002,0.0002176,2]
[338175855,1726354243937,-179.858548,0.0002176,2]
[338175856,1726354243947,-479.749002,0.0002176,2]
[338175857,1726354243956,-479.749002,0.0002176,2]
[338175858,1726354243966,-479.749002,0.0002176,2]
[338175859,1726354243975,-479.749002,0.0002176,2]
[338175860,1726354243985,-479.749002,0.0002176,2]
[338175861,1726354243994,-151.0,0.0002176,2]
[338175862,1726354244005,-151.0,0.0002176,2]
[338175863,1726354244014,-1446.473361,0.0002176,2]
[338175864,1726354244023,-151.0,0.0002176,2]
[338175865,1726354244033,-1446.473361,0.0002176,2]
[338175866,1726354244043,-151.0,0.0002176,2]
[338175867,1726354244052,-151.0,0.0002176,2]
[338175868,1726354244062,-1446.473361,0.0002176,2]
[338175869,1726354244071,-151.0,0.0002176,2]
[338175870,1726354244081,-151.0,0.0002176,2]
[338175871,1726354244090,-151.0,0.0002176,2]
[338175872,1726354244099,-1446.473361,0.0002176,2]
[338175873,1726354244109,-151.0,0.0002176,2]
[338175874,1726354244118,-1446.473361,0.0002176,2]
[338175875,1726354244127,-151.0,0.0002176,2]
[338175876,1726354244136,-263.762664,0.0002176,2]
[338175877,1726354244145,-1446.473361,0.0002176,2]
[338175878,1726354244155,-151.0,0.0002176,2]
[338175879,1726354244164,-151.0,0.0002176,2]
[338175880,1726354244173,-157.513199,0.0002176,2]
[338175881,1726354244183,-153.575323,0.0002176,2]
[338175882,1726354244192,-151.0,0.0002176,2]
[338175883,1726354244201,-151.0,0.0002176,2]
[338175884,1726354244210,-151.0,0.0002176,2]
[338175885,1726354244219,-151.0,0.0002176,2]
[338175886,1726354244228,-151.0,0.0002176,2]
[338175887,1726354244237,-275.098913,0.0002176,2]
[338175888,1726354244246,-875.720515,0.0002176,2]
[338175889,1726354244256,-875.720515,0.0002176,2]
[338175890,1726354244266,-650.123347,0.0002176,2]
[338175891,1726354244275,-875.720515,0.0002176,2]
[338175892,1726354244285,-650.123347,0.0002176,2]
[338175893,1726354244295,-650.123347,0.0002176,2]
[338175894,1726354244304,-875.720515,0.0002176,2]
[338175895,1726354244319,-875.720515,0.0002176,2]
[338175896,1726354244334,-875.720515,0.0002176,2]
[338175897,1726354244347,-650.123347,0.0002176,2]
[338175898,1726354244360,-650.123347,0.0002176,2]
[338175899,1726354244371,-650.123347,0.0002176,2]
[338175900,1726354244384,-151.0,0.0002176,2]
[338175901,1726354244396,-151.0,0.0002176,2]
[338175902,1726354244408,-151.0,0.0002176,2]
[338175903,1726354244420,-282.913378,0.0002176,2]
[338175904,1726354244433,-282.913378,0.0002176,2]
[338175905,1726354244445,-282.913378,0.0002176,2]
[338175906,1726354244457,-282.913378,0.0002176,2]
[338175907,1726354244470,-282.913378,0.0002176,2]
[338175908,1726354244483,-282.913378,0.0002176,2]
[338175909,1726354244495,-352.430928,0.0002176,2]
[338175910,1726354244506,-352.430928,0.0002176,2]
[338175911,1726354244518,-352.430928,0.0002176,2]
[338175912,1726354244530,-151.0,0.0002176,2]
[338175913,1726354244543,-352.430928,0.0002176,2]
[338175914,1726354244556,-352.430928,0.0002176,2]
[338175915,1726354244567,-352.430928,0.0002176,2]
[338175916,1726354244579,-2132.825632,0.0002176,2]
[338175917,1726354244590,-151.0,0.0002176,2]
[338175918,1726354244600,-338.709291,0.0002176,2]
[338175919,1726354244611,-2132.825632,0.0002176,2]
[338175920,1726354244623,-151.0,0.0002176,2]
[338175921,1726354244635,-338.709291,0.0002176,2]
[338175922,1726354244648,-151.0,0.0002176,2]
[338175923,1726354244660,-22322.18509,0.0002176,3]
[338175924,1726354244673,-1754.19585129,0.0002176,3]
[338175925,1726354244686,-22322.18509,0.00021764,3]
[338175926,1726354244701,-1754.19585129,0.00021764,3]
[338175927,1726354244716,-156.821642,0.00021764,2]
[338175928,1726354244727,-151.0,0.00021764,2]
[338175929,1726354244737,-151.0,0.00021764,2]
[338175930,1726354244748,-151.0,0.00021764,2]
[338175931,1726354244759,-151.0,0.00021764,2]
[338175932,1726354244770,-151.0,0.00021764,2]
[338175933,1726354244783,-151.0,0.00021764,2]
[338175934,1726354244801,-151.0,0.00021764,2]
[338175935,1726354244813,-151.0,0.00021764,2]
[338175936,1726354244823,-151.0,0.00021764,2]
[338175937,1726354244836,-593.105452,0.00021764,2]
[338175938,1726354244848,-593.105452,0.00021764,2]
[338175939,1726354244859,-151.0,0.00021764,2]
[338175940,1726354244872,-151.0,0.00021764,2]
[338175941,1726354244884,-593.105452,0.00021764,2]
[338175942,1726354244895,-593.105452,0.00021764,2]
[338175943,1726354244905,-151.0,0.00021764,2]
[338175944,1726354244915,-151.0,0.00021764,2]
[338175945,1726354244925,-363.372583,0.00021764,2]
[338175946,1726354244936,-363.372583,0.00021764,2]
[338175947,1726354244947,-151.0,0.00021764,2]
[338175948,1726354244958,-151.0,0.00021764,2]
[338175949,1726354244969,-363.372583,0.00021764,2]
[338175950,1726354244981,-363.372583,0.00021764,2]
[338175951,1726354244995,-479.749002,0.00021764,2]
[338175952,1726354245006,-479.749002,0.00021764,2]
[338175953,1726354245017,-479.749002,0.00021764,2]
[338175954,1726354245028,-479.749002,0.00021764,2]
[338175955,1726354245039,-151.0,0.00021764,2]
[338175956,1726354245050,-151.0,0.00021764,2]
[338175957,1726354245061,-1446.473361,0.00021764,2]
[338175958,1726354245072,-151.0,0.00021764,2]
[338175959,1726354245083,-1446.473361,0.00021764,2]
[338175960,1726354245093,-151.0,0.00021764,2]
[338175961,1726354245105,-151.0,0.00021764,2]
[338175962,1726354245116,-151.0,0.00021764,2]
[338175963,1726354245127,-1446.473361,0.00021764,2]
[338175964,1726354245138,-1446.473361,0.00021764,2]
[338175965,1726354245149,-151.0,0.00021764,2]
[338175966,1726354245160,-151.0,0.00021764,2]
[338175967,1726354245172,-875.720515,0.00021764,2]
[338175968,1726354245183,-875.720515,0.00021764,2]
[338175969,1726354245194,-650.123347,0.00021764,2]
[338175970,1726354245206,-650.123347,0.00021764,2]
[338175971,1726354245217,-875.720515,0.00021764,2]
[338175972,1726354245228,-875.720515,0.00021764,2]
[338175973,1726354245239,-650.123347,0.00021764,2]
[338175974,1726354245249,-650.123347,0.00021764,2]
[338175975,1726354245260,-151.0,0.00021764,2]
[338175976,1726354245271,-151.0,0.00021764,2]
[338175977,1726354245282,-282.913378,0.00021764,2]
[338175978,1726354245293,-282.913378,0.00021764,2]
[338175979,1726354245303,-282.913378,0.00021764,2]
[338175980,1726354245314,-282.913378,0.00021764,2]
[338175981,1726354245325,-352.430928,0.00021764,2]
[338175982,1726354245336,-352.430928,0.00021764,2]
[338175983,1726354245348,-151.0,0.00021764,2]
[338175984,1726354245359,-352.430928,0.00021764,2]
[338175985,1726354245370,-352.430928,0.00021764,2]
[338175986,1726354245382,-2132.825632,0.00021764,2]
[338175987,1726354245393,-151.0,0.00021764,2]
[338175988,1726354245406,-338.709291,0.00021764,2]
[338175989,1726354245416,-2132.825632,0.00021764,2]
[338175990,1726354245427,-151.0,0.00021764,2]
[338175991,1726354245438,-338.709291,0.00021764,2]
[338175992,1726354245450,-151.0,0.00021764,2]
[338175993,1726354245461,-1754.19585129,0.00021765,3]
[338175994,1726354245472,-3508.39170258,0.00021766,3]
[338175995,1726354245483,-151.0,0.00021766,2]
[338175996,1726354245494,-151.0,0.00021766,2]
[338175997,1726354245505,-1000.0,0.00021766,2]
[338175998,1726354245516,-1000.0,0.00021766,2]
[338175999,1726354245527,-1000.0,0.00021766,2]
[338176000,1726354245539,-1000.0,0.00021766,2]
[338176001,1726354245550,-1000.0,0.00021766,2]
[338176002,1726354245561,-1000.0,0.00021766,2]
[338176003,1726354245571,-1000.0,0.00021766,2]
[338176004,1726354245582,-1000.0,0.00021766,2]
[338176005,1726354245593,-1000.0,0.00021766,2]
[338176006,1726354245603,-1000.0,0.00021766,2]
[338176007,1726354245614,-1000.0,0.00021766,2]
[338176008,1726354245625,-1000.0,0.00021766,2]
[338176009,1726354245635,-1000.0,0.00021766,2]
[338176010,1726354245646,-1000.0,0.00021766,2]
[338176011,1726354245657,-1000.0,0.00021766,2]
[338176012,1726354245667,-1000.0,0.00021766,2]
[338176013,1726354245678,-1000.0,0.00021766,2]
[338176014,1726354245689,-1000.0,0.00021766,2]
[338176015,1726354245700,-1000.0,0.00021766,2]
[338176016,1726354245714,-1000.0,0.00021766,2]
[338176017,1726354245724,-1000.0,0.00021766,2]
[338176018,1726354245735,-1000.0,0.00021766,2]
[338176019,1726354245746,-1000.0,0.00021766,2]
[338176020,1726354245756,-1000.0,0.00021766,2]
[338176021,1726354245767,-1000.0,0.00021766,2]
[338176022,1726354245778,-1000.0,0.00021766,2]
[338176023,1726354245789,-151.0,0.00021766,2]
[338176024,1726354245800,-151.0,0.00021766,2]
[338176025,1726354245811,-151.0,0.00021766,2]
[338176026,1726354245823,-151.0,0.00021766,2]
[338176027,1726354245834,-151.0,0.00021766,2]
[338176028,1726354245845,-151.0,0.00021766,2]
[338176029,1726354245855,-593.105452,0.00021766,2]
[338176030,1726354245866,-593.105452,0.00021766,2]
[338176031,1726354245877,-151.0,0.00021766,2]
[338176032,1726354245888,-151.0,0.00021766,2]
[338176033,1726354245900,-593.105452,0.00021766,2]
[338176034,1726354245912,-593.105452,0.00021766,2]
[338176035,1726354245924,-227.06865388,0.00021766,2]
[338176036,1726354245944,-136.30392912,0.00021766,2]
[338176037,1726354245955,-363.372583,0.00021766,2]
[338176038,1726354245968,-151.0,0.00021766,2]
[338176039,1726354245979,-151.0,0.00021766,2]
[338176040,1726354245990,-363.372583,0.00021766,2]
[338176041,1726354246001,-363.372583,0.00021766,2]
[338176042,1726354246012,-479.749002,0.00021766,2]
[338176043,1726354246023,-479.749002,0.00021766,2]
[338176046,1726354246036,-479.749002,0.00021766,2]
[338176047,1726354246048,-479.749002,0.00021766,2]